bitfinex-derivatives/quotes_BTCF0:USTF0_20250827
["timestamp","ask_amount","ask_price","bid_price","bid_amount"]
[1756311437619,0.14211724,112030.0,112020.0,0.91047089]
[1756311437914,0.14211724,112030.0,112020.0,1.74827089]
[1756311438111,0.14211724,112030.0,112020.0,0.91047089]
[1756311438314,0.14211724,112030.0,112020.0,1.74823089]
[1756311440118,0.05287084,112030.0,112020.0,1.74823089]
[1756311440315,0.05287084,112030.0,112020.0,2.26182723]
[1756311440821,0.02661346,112030.0,112020.0,2.26182723]
[1756311441125,0.003,112030.0,112020.0,2.51182723]
[1756311446327,0.003,112030.0,112020.0,2.86182723]
[1756311447115,1.7375308,112050.0,112030.0,0.0892436]
[1756311447319,1.80526062,112050.0,112040.0,2.08635356]
[1756311447511,1.80526062,112050.0,112040.0,0.8408385]
[1756311447716,1.80526062,112050.0,112040.0,1.6782785]
[1756311447921,1.80526062,112050.0,112040.0,2.11631356]
[1756311449122,1.80526062,112050.0,112040.0,1.27887356]
[1756311449322,1.80526062,112050.0,112040.0,2.11623356]
[1756311449925,1.80526062,112050.0,112040.0,1.6781985]
[1756311450424,1.71602982,112050.0,112040.0,1.6781985]
[1756311450626,0.06772982,112050.0,112040.0,2.11623356]
[1756311451127,0.06972982,112050.0,112040.0,2.11623356]
[1756311451428,0.002,112050.0,112040.0,2.11623356]
[1756311451623,0.02821457,112050.0,112040.0,2.11623356]
[1756311452024,0.002,112050.0,112040.0,2.11623356]
[1756311452232,0.002,112050.0,112040.0,1.27887356]
[1756311452427,0.002,112050.0,112040.0,0.8408385]
[1756311452626,0.11745192,112050.0,112040.0,1.6780785]
[1756311453228,0.11745192,112050.0,112040.0,1.6780385]
[1756311453628,0.02822142,112050.0,112040.0,2.11607356]
[1756311453924,0.02822142,112050.0,112040.0,1.27887356]
[1756311454128,0.0912305,112050.0,112040.0,2.11603356]
[1756311454523,0.0912305,112050.0,112040.0,0.8408385]
[1756311454920,0.52926556,112050.0,112040.0,1.6779585]
[1756311455124,0.52926556,112050.0,112040.0,0.8408385]
[1756311455325,0.92756556,112050.0,112040.0,1.6779585]
[1756311457730,0.92756556,112050.0,112040.0,0.8408385]
[1756311458027,0.92756556,112050.0,112040.0,0.7516]
[1756311458223,0.95378503,112050.0,112040.0,0.7516]
[1756311459334,0.70378503,112050.0,112040.0,0.8408385]
[1756311459530,0.26574997,112050.0,112040.0,0.8408385]
[1756311459734,0.70378503,112050.0,112040.0,0.8408385]
[1756311459932,0.70378503,112050.0,112040.0,0.7516]
[1756311460232,0.95378503,112050.0,112040.0,0.03]
[1756311460433,0.80348503,112050.0,112040.0,0.03]
[1756311460635,1.78874503,112050.0,112040.0,0.03]
[1756311460824,1.35070997,112050.0,112040.0,0.03]
[1756311461025,2.14954503,112050.0,112040.0,0.03]
[1756311461429,2.00124503,112050.0,112040.0,0.03]
[1756311461833,2.00324503,112050.0,112040.0,0.03]
[1756311462434,2.00424503,112050.0,112040.0,0.03]
[1756311462636,2.44228009,112050.0,112040.0,0.03]
[1756311462828,2.00424503,112050.0,112040.0,0.03]
[1756311463025,2.44228009,112050.0,112040.0,0.03]
[1756311463228,2.00424503,112050.0,112040.0,0.03]
[1756311463538,0.95536997,112050.0,112040.0,0.3908]
[1756311463735,1.39340503,112050.0,112040.0,0.03]
[1756311463925,0.95536997,112050.0,112040.0,0.3908]
[1756311464235,1.39340503,112050.0,112040.0,0.3908]
[1756311464632,0.55648503,112050.0,112040.0,0.4800384]
[1756311464830,0.11844997,112050.0,112040.0,0.4800384]
[1756311465431,0.11544997,112050.0,112040.0,0.4800384]
[1756311466036,0.02621947,112050.0,112040.0,0.91807346]
[1756311466232,0.02621947,112050.0,112040.0,1.16807346]
[1756311466626,0.02621947,112050.0,112040.0,1.60610852]
[1756311466831,0.04262952,112060.0,112050.0,0.0892305]
[1756311467137,1.5,112080.0,112070.0,0.0892137]
[1756311467334,1.52651062,112080.0,112070.0,0.8408137]
[1756311468837,1.52951062,112080.0,112070.0,0.8408137]
[1756311470538,2.13178957,112080.0,112070.0,0.7516]
[1756311470740,2.17411561,112080.0,112070.0,0.7516]
[1756311471738,3.03907561,112080.0,112070.0,0.7516]
[1756311474941,2.52600326,112080.0,112070.0,0.7516]
[1756311475639,3.03907561,112080.0,112070.0,0.7516]
[1756311476037,3.03907561,112080.0,112070.0,0.3908]
[1756311477838,1.66104326,112080.0,112070.0,0.4800146]
[1756311478038,2.52356326,112080.0,112070.0,0.4800146]
[1756311478238,2.52356326,112080.0,112070.0,0.3908]
[1756311479442,3.03663561,112080.0,112070.0,0.3908]
[1756311479843,2.52356326,112080.0,112070.0,0.3908]
[1756311480043,3.03663561,112080.0,112070.0,0.3908]
[1756311480944,2.52216326,112080.0,112070.0,0.4800146]
[1756311481942,1.66104326,112080.0,112070.0,0.4800146]
[1756311482143,1.65988766,112080.0,112070.0,0.4800146]
[1756311482344,2.52056766,112080.0,112070.0,0.4800146]
[1756311482546,1.65988766,112080.0,112070.0,0.4800146]
[1756311482747,2.52080766,112080.0,112070.0,0.4800146]
[1756311482940,2.52080766,112080.0,112070.0,0.3908]
[1756311483542,1.65988766,112080.0,112070.0,0.3908]
[1756311483748,2.52040766,112080.0,112070.0,0.4800146]
[1756311485653,2.52040766,112080.0,112070.0,0.3908]
[1756311485953,3.03348001,112080.0,112070.0,0.3908]
[1756311487347,1.65988766,112080.0,112070.0,0.3908]
[1756311487554,3.03312001,112080.0,112070.0,0.3908]
[1756311488352,2.17296001,112080.0,112070.0,0.3908]
[1756311488550,2.51992766,112080.0,112070.0,0.3908]
[1756311488750,3.03300001,112080.0,112070.0,0.3908]
[1756311489253,2.51992766,112080.0,112070.0,0.3908]
[1756311489554,2.95772003,112080.0,112070.0,0.3908]
[1756311490559,3.6456724,112080.0,112070.0,0.3908]
[1756311490763,3.6456724,112080.0,112070.0,0.03]
[1756311491263,4.0064724,112080.0,112070.0,0.03]
[1756311491463,0.0892146,112070.0,112060.0,0.38042675]
[1756311491665,0.57025071,112070.0,112060.0,0.3908]
[1756311492964,0.82225071,112070.0,112060.0,0.3908]
[1756311493265,1.75880659,112070.0,112060.0,0.3908]
[1756311493661,1.75896659,112070.0,112060.0,0.3908]
[1756311494261,0.89768659,112070.0,112060.0,0.3908]
[1756311494664,1.75852659,112070.0,112060.0,0.3908]
[1756311495063,0.89768659,112070.0,112060.0,0.3908]
[1756311495263,1.50836659,112070.0,112060.0,0.4800226]
[1756311495764,0.99509834,112070.0,112060.0,0.4800226]
[1756311496161,0.04508374,112070.0,112060.0,0.4800226]
[1756311496363,0.04508374,112070.0,112060.0,0.7300226]
[1756311496764,0.13429834,112070.0,112060.0,0.7300226]
[1756311496965,0.04508374,112070.0,112060.0,0.7300226]
[1756311497260,0.13429834,112070.0,112060.0,0.7300226]
[1756311497468,0.04508374,112070.0,112060.0,0.7300226]
[1756311497769,0.13429834,112070.0,112060.0,0.7300226]
[1756311497968,0.04508374,112070.0,112060.0,0.7300226]
[1756311499661,0.01972872,112070.0,112060.0,1.24341085]
[1756311500066,0.002,112070.0,112060.0,0.7300226]
[1756311501168,0.02739597,112070.0,112060.0,0.7300226]
[1756311501369,0.002,112070.0,112060.0,0.7300226]
[1756311502764,0.0912146,112070.0,112060.0,0.7300226]
[1756311503269,0.11661109,112070.0,112060.0,0.7300226]
[1756311503766,0.0912146,112070.0,112060.0,0.7300226]
[1756311505480,0.002,112070.0,112060.0,0.7300226]
[1756311505665,0.02739681,112070.0,112060.0,0.7300226]
[1756311506574,0.11661141,112070.0,112060.0,0.7300226]
[1756311506767,0.11661129,112070.0,112060.0,0.7300226]
[1756311507274,0.02739669,112070.0,112060.0,0.7300226]
[1756311507471,0.002,112070.0,112060.0,0.7300226]
[1756311507669,0.002,112070.0,112060.0,1.24341085]
[1756311508265,0.0891964,112100.0,112060.0,1.76341085]
[1756311508467,0.11417375,112100.0,112090.0,0.4499987]
[1756311508671,0.11417375,112100.0,112090.0,0.4799987]
[1756311509375,1.61417375,112100.0,112090.0,0.4799987]
[1756311509575,1.61617375,112100.0,112090.0,0.4799987]
[1756311509974,1.61417375,112100.0,112090.0,0.4799987]
[1756311510176,1.62017375,112100.0,112090.0,0.4799987]
[1756311510976,1.53097735,112100.0,112090.0,0.4799987]
[1756311511377,1.506,112100.0,112090.0,0.4799987]
[1756311511773,1.63974614,112100.0,112090.0,0.4799987]
[1756311513370,2.0774978,112100.0,112090.0,0.4799987]
[1756311513781,1.63974614,112100.0,112090.0,0.4799987]
[1756311513980,2.0774978,112100.0,112090.0,0.4799987]
[1756311514280,1.63974614,112100.0,112090.0,0.4799987]
[1756311514481,2.0774978,112100.0,112090.0,0.4799987]
[1756311515877,1.63974614,112100.0,112090.0,0.4799987]
[1756311516184,2.0774978,112100.0,112090.0,0.4799987]
[1756311516881,1.63974614,112100.0,112090.0,0.4799987]
[1756311517082,2.0774978,112100.0,112090.0,0.4799987]
[1756311518773,1.63974614,112100.0,112090.0,0.4799987]
[1756311518978,2.0774978,112100.0,112090.0,0.4799987]
[1756311519883,1.63974614,112100.0,112090.0,0.4799987]
[1756311520281,1.55055544,112100.0,112090.0,0.91775036]
[1756311520484,0.05055544,112100.0,112090.0,0.91775036]
[1756311520679,0.05055544,112100.0,112090.0,1.16775036]
[1756311520887,1.5891749,112120.0,112110.0,0.0891827]
[1756311521079,1.5891749,112120.0,112110.0,0.91773436]
[1756311521680,1.5891749,112120.0,112110.0,0.4799827]
[1756311521982,1.7374749,112120.0,112110.0,1.3376227]
[1756311522290,1.5891749,112120.0,112110.0,1.3376227]
[1756311522785,1.63321591,112120.0,112110.0,1.3376627]
[1756311523388,1.63621591,112120.0,112110.0,0.4799827]
[1756311523990,1.63621591,112120.0,112110.0,1.3372227]
[1756311527294,1.63621591,112120.0,112110.0,1.3363427]
[1756311528689,1.63621591,112120.0,112110.0,0.4799827]
[1756311528887,1.63621591,112120.0,112110.0,1.3359427]
[1756311529190,1.63621591,112120.0,112110.0,0.4799827]
[1756311529396,1.63621591,112120.0,112110.0,1.3354227]
[1756311529689,1.63621591,112120.0,112110.0,0.3908]
[1756311529994,2.07396757,112120.0,112110.0,1.24624]
[1756311530592,2.07396757,112120.0,112110.0,1.3354227]
[1756311531295,1.63621591,112120.0,112110.0,1.3354227]
[1756311531796,1.63621591,112120.0,112110.0,1.3353427]
[1756311532495,1.63621591,112120.0,112110.0,1.77309436]
[1756311532996,1.63621591,112120.0,112110.0,0.4799827]
[1756311533195,1.63621591,112120.0,112110.0,1.3355427]
[1756311534300,2.09906675,112120.0,112110.0,1.3355427]
[1756311534497,1.66131509,112120.0,112110.0,1.3355427]
[1756311535904,1.66131509,112120.0,112110.0,1.3348227]
[1756311536204,1.66131509,112120.0,112110.0,1.3351027]
[1756311536387,2.09906675,112120.0,112110.0,1.3351027]
[1756311537900,1.66131509,112120.0,112110.0,1.3351027]
[1756311538201,2.09906675,112120.0,112110.0,1.3351027]
[1756311538598,2.09906675,112120.0,112110.0,0.4799827]
[1756311538800,2.09906675,112120.0,112110.0,1.3341427]
[1756311539300,2.09906675,112120.0,112110.0,1.3340227]
[1756311540199,2.09906675,112120.0,112110.0,0.3908]
[1756311540397,2.78681841,112120.0,112110.0,0.3908]
[1756311540699,2.93511841,112120.0,112110.0,0.3908]
[1756311541006,2.49736675,112120.0,112110.0,0.3908]
[1756311541602,0.90819185,112120.0,112110.0,0.3908]
[1756311542001,1.85180895,112120.0,112110.0,0.3908]
[1756311542399,0.0891828,112110.0,112100.0,0.3608]
[1756311542702,0.61312364,112110.0,112100.0,0.3908]
[1756311543211,1.02981198,112110.0,112100.0,0.5393407]
[1756311543397,1.46756364,112110.0,112100.0,0.5393407]
[1756311543703,1.46772364,112110.0,112100.0,0.5393407]
[1756311544104,1.46772364,112110.0,112100.0,0.5403407]
[1756311544603,1.51511364,112110.0,112100.0,0.5895207]
[1756311545601,1.07736198,112110.0,112100.0,0.5895207]
[1756311545905,0.66047364,112110.0,112100.0,0.60945025]
[1756311546106,0.66047364,112110.0,112100.0,0.52025955]
[1756311546397,0.66047364,112110.0,112100.0,0.41172955]
[1756311546598,0.66047364,112110.0,112100.0,0.3918]
[1756311547704,0.66047364,112110.0,112100.0,0.42155]
[1756311548399,0.22272198,112110.0,112100.0,0.66390242]
[1756311548596,1.51403364,112110.0,112100.0,0.66390242]
[1756311549199,1.51395364,112110.0,112100.0,0.66390242]
[1756311549597,1.51427364,112110.0,112100.0,0.66390242]
[1756311550102,0.66047364,112110.0,112100.0,0.66390242]
[1756311550304,0.22272198,112110.0,112100.0,0.66390242]
[1756311550505,0.66047364,112110.0,112100.0,0.66390242]
[1756311550709,0.66047364,112110.0,112100.0,0.57471172]
[1756311551209,0.22272198,112110.0,112100.0,0.57471172]
[1756311551408,0.66047364,112110.0,112100.0,0.57471172]
[1756311551605,0.80877364,112110.0,112100.0,0.57471172]
[1756311552611,1.05877364,112110.0,112100.0,0.031]
[1756311552802,0.1813387,112090.0,112080.0,0.61589541]
[1756311552998,0.61909036,112090.0,112080.0,0.70413541]
[1756311553606,2.11909036,112090.0,112080.0,0.70413541]
[1756311554206,2.11909036,112090.0,112080.0,0.70713541]
[1756311554702,2.11909036,112090.0,112080.0,0.54626698]
[1756311556013,2.11909036,112090.0,112080.0,0.49086698]
[1756311556312,1.6813387,112090.0,112080.0,0.09722698]
[1756311556512,2.11909036,112090.0,112080.0,0.09722698]
[1756311556703,2.97177036,112090.0,112080.0,0.45802698]
[1756311557110,2.97177036,112090.0,112080.0,0.41315698]
[1756311557306,2.97177036,112090.0,112080.0,0.3638]
[1756311557512,2.97177036,112090.0,112080.0,0.39355]
[1756311557908,2.5340187,112090.0,112080.0,0.47126]
[1756311558108,2.97177036,112090.0,112080.0,0.43842]
[1756311558306,2.11909036,112090.0,112080.0,0.43842]
[1756311558514,2.97177036,112090.0,112080.0,0.43842]
[1756311558812,2.9969154,112090.0,112080.0,0.43842]
[1756311559307,2.9969154,112090.0,112080.0,0.3638]
[1756311559510,2.9969154,112090.0,112080.0,0.39355]
[1756311560319,2.1442354,112090.0,112080.0,0.39355]
[1756311560503,1.70648374,112090.0,112080.0,0.52666]
[1756311560704,2.9963554,112090.0,112080.0,0.52666]
[1756311562107,2.1442354,112090.0,112080.0,0.52666]
[1756311562808,2.44354,112090.0,112080.0,0.6158666]
[1756311563107,0.04404101,112120.0,112110.0,0.1534828]
[1756311563307,0.08139,112130.0,112120.0,0.15347]
[1756311563512,0.08139,112130.0,112120.0,1.02224674]
[1756311563704,0.08139,112130.0,112120.0,1.97288674]
[1756311564017,0.08139,112130.0,112120.0,1.12080674]
[1756311564205,0.10957,112130.0,112120.0,0.68305508]
[1756311564407,0.12916,112130.0,112120.0,1.12080674]
[1756311564607,0.08139,112130.0,112120.0,1.97280674]
[1756311564910,0.08139,112130.0,112120.0,1.97780674]
[1756311565913,0.11972945,112130.0,112120.0,1.97776674]
[1756311566109,0.15587945,112130.0,112120.0,1.54005508]
[1756311566415,0.20364945,112130.0,112120.0,1.53697508]
[1756311567310,0.20364945,112130.0,112120.0,1.97272674]
[1756311567513,0.20364945,112130.0,112120.0,1.97372674]
[1756311567718,0.20364945,112130.0,112120.0,1.12180674]
[1756311568017,0.20364945,112130.0,112120.0,1.97520674]
[1756311568523,0.29281625,112130.0,112120.0,1.97516674]
[1756311568816,0.29261625,112130.0,112120.0,1.12280674]
[1756311569115,0.29261625,112130.0,112120.0,0.68505988]
[1756311569314,0.29261625,112130.0,112120.0,1.53753988]
[1756311569715,0.13931945,112130.0,112120.0,1.97529154]
[1756311570008,0.03833945,112130.0,112120.0,1.97529154]
[1756311570219,1.105784,112140.0,112130.0,0.0891669]
[1756311570412,2.605784,112140.0,112130.0,0.6166469]
[1756311570712,2.605784,112140.0,112130.0,1.05439856]
[1756311570713,1.70196438,112140.0,112130.0,1.05439856]
[1756311570912,1.67398438,112140.0,112130.0,1.05439856]
[1756311571119,1.61760438,112140.0,112130.0,1.05439856]
[1756311571913,1.53798438,112140.0,112130.0,1.45405092]
[1756311572119,1.53798438,112140.0,112130.0,1.68405092]
[1756311572414,1.53798438,112140.0,112130.0,2.17645092]
[1756311572613,1.53798438,112140.0,112130.0,1.32405092]
[1756311572918,1.61760438,112140.0,112130.0,1.92621092]
[1756311573119,1.61760438,112140.0,112130.0,1.92721092]
[1756311573120,1.70676328,112140.0,112130.0,1.92721092]
[1756311573324,1.65449438,112140.0,112130.0,1.92721092]
[1756311573624,1.53798438,112140.0,112130.0,1.92693092]
[1756311574112,1.53798438,112140.0,112130.0,1.92669092]
[1756311574318,1.62714328,112140.0,112130.0,1.92669092]
[1756311574521,1.65931328,112140.0,112130.0,1.07505092]
[1756311574726,1.57015438,112140.0,112130.0,1.92669092]
[1756311575018,1.53798438,112140.0,112130.0,1.92669092]
[1756311575714,1.65931328,112140.0,112130.0,1.07505092]
[1756311575920,1.57015438,112140.0,112130.0,1.92633092]
[1756311576219,1.57015438,112140.0,112130.0,1.07505092]
[1756311576413,1.57015438,112140.0,112130.0,1.92637092]
[1756311576920,1.53798438,112140.0,112130.0,1.92637092]
[1756311577619,0.03798438,112140.0,112130.0,1.92637092]
[1756311577814,0.2251562,112150.0,112140.0,0.0891589]
[1756311578008,0.2531362,112150.0,112140.0,1.05439056]
[1756311578211,1.7531362,112150.0,112140.0,1.05439056]
[1756311578817,1.7162462,112150.0,112140.0,1.05439056]
[1756311579125,1.79144588,112150.0,112140.0,1.90531056]
[1756311579507,1.70229488,112150.0,112140.0,1.90531056]
[1756311579711,1.67431488,112150.0,112140.0,1.90531056]
[1756311579922,1.63742488,112150.0,112140.0,1.90531056]
[1756311580220,1.79144578,112150.0,112140.0,0.6166389]
[1756311580519,1.79144578,112150.0,112140.0,1.90527056]
[1756311580916,1.70229488,112150.0,112140.0,1.90627056]
[1756311582114,1.79144588,112150.0,112140.0,1.90627056]
[1756311586220,1.76346588,112150.0,112140.0,1.90627056]
[1756311586423,1.79144588,112150.0,112140.0,1.90627056]
[1756311587226,1.70229488,112150.0,112140.0,1.90627056]
[1756311587421,1.58576488,112150.0,112140.0,1.90627056]
[1756311587926,1.64591488,112150.0,112140.0,1.4685189]
[1756311588126,1.61793488,112150.0,112140.0,1.4685189]
[1756311588326,1.58576488,112150.0,112140.0,1.90627056]
[1756311588528,1.77195578,112150.0,112140.0,1.90627056]
[1756311588728,1.77195578,112150.0,112140.0,1.05539056]
[1756311588927,1.77195578,112150.0,112140.0,1.90395056]
[1756311592530,1.77195578,112150.0,112140.0,1.90495056]
[1756311594735,1.65482488,112150.0,112140.0,1.90495056]
[1756311595332,1.62265488,112150.0,112140.0,2.15495056]
[1756311595529,1.65482488,112150.0,112140.0,1.7171989]
[1756311595729,1.58576488,112150.0,112140.0,2.15495056]
[1756311596736,0.03831488,112150.0,112140.0,2.15495056]
[1756311596929,0.7369513,112170.0,112160.0,0.089143]
[1756311597130,0.18926587,112170.0,112160.0,1.90433466]
[1756311597331,0.16128587,112170.0,112160.0,2.26513466]
[1756311597531,0.25042097,112170.0,112160.0,2.26513466]
[1756311598031,0.27840097,112170.0,112160.0,2.26513466]
[1756311598230,1.81632191,112170.0,112160.0,2.26501466]
[1756311599138,1.72718681,112170.0,112160.0,2.26501466]
[1756311599337,1.81732191,112170.0,112160.0,2.26501466]
[1756311599943,1.81732191,112170.0,112160.0,1.41517466]
[1756311600237,1.81632191,112170.0,112160.0,0.945703]
[1756311600542,1.81632191,112170.0,112160.0,1.826153]
[1756311601432,1.81636377,112170.0,112160.0,1.826153]
[1756311602340,1.72722867,112170.0,112160.0,2.26390466]
[1756311602938,1.81636377,112170.0,112160.0,2.26390466]
[1756311603435,1.81636377,112170.0,112160.0,1.41502466]
[1756311603738,1.81636377,112170.0,112160.0,2.26334466]
[1756311604434,1.78838377,112170.0,112160.0,2.26334466]
[1756311604641,1.81609377,112170.0,112160.0,1.41502466]
[1756311604833,1.81609377,112170.0,112160.0,2.26330466]
[1756311605035,1.81609377,112170.0,112160.0,1.794783]
[1756311605233,1.81609377,112170.0,112160.0,1.826353]
[1756311605836,1.81609377,112170.0,112160.0,1.826473]
[1756311606345,2.25384543,112170.0,112160.0,1.64816]
[1756311606639,2.25384543,112170.0,112160.0,1.737303]
[1756311606839,2.25384543,112170.0,112160.0,1.806453]
[1756311607041,2.25384543,112170.0,112160.0,0.975813]
[1756311608033,2.66477377,112170.0,112160.0,1.41356466]
[1756311608237,2.57563867,112170.0,112160.0,1.41356466]
[1756311608436,1.72695867,112170.0,112160.0,1.41356466]
[1756311608742,1.69924867,112170.0,112160.0,1.41356466]
[1756311609337,0.06324867,112170.0,112160.0,1.41356466]
[1756311609542,0.06324867,112170.0,112160.0,2.10131632]
[1756311610533,0.06324867,112170.0,112160.0,1.66356466]
[1756311612353,0.06324867,112170.0,112160.0,2.51360466]
[1756311614237,0.22156377,112170.0,112160.0,2.26360466]
[1756311614446,0.24927377,112170.0,112160.0,2.26280466]
[1756311614645,0.24927377,112170.0,112160.0,1.41356466]
[1756311614840,0.24927377,112170.0,112160.0,0.975813]
[1756311615041,1.85134543,112170.0,112160.0,0.002]
[1756311615340,1.85190543,112170.0,112160.0,0.002]
[1756311616541,1.85174543,112170.0,112160.0,0.002]
[1756311617150,1.00234543,112170.0,112160.0,0.002]
[1756311617549,1.85142543,112170.0,112160.0,0.002]
[1756311618355,1.00234543,112170.0,112160.0,0.002]
[1756311618647,1.85130543,112170.0,112160.0,0.002]
[1756311619346,2.21210543,112170.0,112160.0,0.002]
[1756311619650,2.21210543,112170.0,112160.0,0.14631]
[1756311619651,1.11314543,112170.0,112160.0,0.14631]
[1756311619843,1.96182543,112170.0,112160.0,0.07716]
[1756311620143,0.75234543,112170.0,112160.0,0.07716]
[1756311620348,1.16327377,112170.0,112160.0,0.52519]
[1756311620747,1.16327377,112170.0,112160.0,0.07716]
[1756311621059,1.60102543,112170.0,112160.0,0.16439]
[1756311621749,1.60074543,112170.0,112160.0,0.16439]
[1756311622156,1.60074543,112170.0,112160.0,0.12681]
[1756311622452,1.16299377,112170.0,112160.0,0.253533]
[1756311622953,1.16299377,112170.0,112160.0,0.614333]
[1756311623250,1.60054543,112170.0,112160.0,0.614333]
[1756311624752,0.75234543,112170.0,112160.0,0.52519]
[1756311625053,1.60006543,112170.0,112160.0,0.52519]
[1756311625351,1.60006543,112170.0,112160.0,0.002]
[1756311625848,1.60006543,112170.0,112160.0,0.05466]
[1756311626052,1.60006543,112170.0,112160.0,0.02737]
[1756311626253,1.60006543,112170.0,112160.0,0.002]
[1756311627054,0.75234543,112170.0,112160.0,0.002]
[1756311627245,1.59970543,112170.0,112160.0,0.002]
[1756311627445,2.21050543,112170.0,112160.0,0.002]
[1756311627654,0.089143,112160.0,112150.0,0.3608]
[1756311627852,0.71443239,112160.0,112150.0,0.3608]
[1756311628350,0.27668073,112160.0,112150.0,0.3608]
[1756311628558,0.71443239,112160.0,112150.0,0.3608]
[1756311628748,0.2513909,112150.0,112140.0,0.51186649]
[1756311628950,0.68714256,112150.0,112140.0,0.50628649]
[1756311629146,1.53410256,112150.0,112140.0,0.54150649]
[1756311629352,0.68714256,112150.0,112140.0,0.63066539]
[1756311629553,0.2493909,112150.0,112140.0,0.63066539]
[1756311630049,0.2513909,112150.0,112140.0,1.06841705]
[1756311630549,0.2513909,112150.0,112140.0,0.54250649]
[1756311631361,0.2513909,112150.0,112140.0,0.63166489]
[1756311632947,0.68914256,112150.0,112140.0,0.63166489]
[1756311633754,0.68914256,112150.0,112140.0,0.54250649]
[1756311634156,0.68914256,112150.0,112140.0,0.63166489]
[1756311634456,0.2513909,112150.0,112140.0,0.63166489]
[1756311634853,0.13332,112150.0,112140.0,1.06941655]
[1756311635349,0.09688,112150.0,112140.0,1.06941655]
[1756311635543,0.07827,112150.0,112140.0,1.06941655]
[1756311635747,0.1674205,112150.0,112140.0,1.06941655]
[1756311635949,0.2513905,112150.0,112140.0,1.06941655]
[1756311636248,0.2513905,112150.0,112140.0,0.63166489]
[1756311636443,0.68914216,112150.0,112140.0,0.54250649]
[1756311637357,0.68914216,112150.0,112140.0,0.63166489]
[1756311637657,0.68914216,112150.0,112140.0,0.54250649]
[1756311637851,0.68914216,112150.0,112140.0,0.63166489]
[1756311638155,0.2513905,112150.0,112140.0,0.63166489]
[1756311638357,0.68914216,112150.0,112140.0,0.63166489]
[1756311638558,0.2513905,112150.0,112140.0,0.63166489]
[1756311638761,0.2513905,112150.0,112140.0,0.54250649]
[1756311639055,0.94014216,112150.0,112140.0,0.41346]
[1756311639363,0.94014216,112150.0,112140.0,0.3608]
[1756311639658,0.94014216,112150.0,112140.0,0.50071]
[1756311639853,0.5023905,112150.0,112140.0,0.51915]
[1756311640054,1.78562216,112150.0,112140.0,0.51915]
[1756311640456,1.78602216,112150.0,112140.0,0.51915]
[1756311640651,1.3482705,112150.0,112140.0,0.3608]
[1756311640852,1.78630216,112150.0,112140.0,0.51915]
[1756311641055,1.78630216,112150.0,112130.0,0.3608]
[1756311641056,2.18212216,112150.0,112130.0,0.3608]
[1756311641352,0.2514143,112120.0,112110.0,0.13098]
[1756311641558,0.68916596,112120.0,112110.0,0.13098]
[1756311641748,1.53704596,112120.0,112110.0,0.13098]
[1756311642150,1.53604596,112120.0,112110.0,0.07732]
[1756311642354,1.78604596,112120.0,112110.0,0.02191]
[1756311642561,0.2514223,112110.0,112100.0,0.13269641]
[1756311642755,0.68917396,112110.0,112100.0,0.11254]
[1756311642955,0.68617396,112110.0,112100.0,0.11254]
[1756311643154,0.68417396,112110.0,112100.0,0.11254]
[1756311644058,0.68417396,112110.0,112100.0,0.07732]
[1756311644362,1.04497396,112110.0,112100.0,0.02341]
[1756311644563,1.04497396,112110.0,112090.0,0.52713222]
[1756311644564,0.2514302,112100.0,112090.0,0.59089222]
[1756311644860,0.68918186,112100.0,112090.0,0.59089222]
[1756311645155,0.2514382,112090.0,112080.0,0.53902621]
[1756311645350,1.53654986,112090.0,112080.0,0.53902621]
[1756311646355,1.5683805,112090.0,112080.0,0.17822621]
[1756311646554,1.5683805,112090.0,112080.0,0.04632]
[1756311646764,1.9291805,112090.0,112080.0,0.02441]
[1756311646959,1.9291805,112090.0,112080.0,0.001]
[1756311647354,2.00462567,112090.0,112080.0,0.001]
[1756311647658,0.0892141,112070.0,112060.0,0.42339]
[1756311647862,0.76465093,112070.0,112060.0,0.51815]
[1756311648064,1.61177093,112070.0,112060.0,0.51815]
[1756311648563,1.0965741,112070.0,112060.0,0.49078]
[1756311648760,1.0965741,112070.0,112060.0,0.47234]
[1756311648952,1.0965741,112070.0,112060.0,0.51815]
[1756311648953,0.2504541,112070.0,112060.0,0.51815]
[1756311649360,1.0992541,112070.0,112060.0,0.6073721]
[1756311649556,0.12968,112070.0,112060.0,0.6073721]
[1756311649766,0.12968,112070.0,112060.0,1.12056893]
[1756311649967,0.001,112070.0,112060.0,1.37056893]
[1756311650163,1.04059204,112090.0,112070.0,0.0892067]
[1756311650164,0.14995044,112090.0,112070.0,0.0892067]
[1756311650365,0.20665044,112090.0,112080.0,0.51915]
[1756311650565,0.28327044,112090.0,112080.0,0.6083561]
[1756311650760,0.28327044,112090.0,112080.0,0.51915]
[1756311650961,0.79646727,112090.0,112080.0,0.42456]
[1756311651158,0.79646727,112090.0,112080.0,0.51915]
[1756311651363,0.79646727,112090.0,112080.0,0.6083561]
[1756311651562,1.13219044,112090.0,112080.0,0.6083561]
[1756311651864,0.28527044,112090.0,112080.0,0.6083561]
[1756311652270,0.28627044,112090.0,112080.0,0.6083561]
[1756311652958,0.28527044,112090.0,112080.0,0.6083561]
[1756311653159,0.28727044,112090.0,112080.0,0.6083561]
[1756311654265,0.28727044,112090.0,112080.0,0.51915]
[1756311654668,0.28727044,112090.0,112080.0,0.6083561]
[1756311654863,0.28727044,112090.0,112080.0,0.51915]
[1756311655864,0.23510044,112090.0,112080.0,0.6083561]
[1756311656068,0.17708884,112090.0,112080.0,0.8583561]
[1756311656460,0.1150568,112090.0,112080.0,0.8583561]
[1756311656664,0.03583064,112090.0,112080.0,1.37155293]
[1756311656968,0.004,112090.0,112080.0,1.73235293]
[1756311657162,0.03135233,112100.0,112090.0,0.2475445]
[1756311657471,0.11633754,112100.0,112090.0,1.96930133]
[1756311657761,0.02715094,112100.0,112090.0,1.96946133]
[1756311658070,0.27857754,112100.0,112090.0,0.6083445]
[1756311658572,0.31308012,112100.0,112090.0,0.6083445]
[1756311659170,0.20205962,112100.0,112090.0,0.6083445]
[1756311659669,0.20205962,112100.0,112090.0,1.12154133]
[1756311660067,0.06165352,112100.0,112090.0,1.12154133]
[1756311660362,0.15083962,112100.0,112090.0,2.21894133]
[1756311660668,0.06165352,112100.0,112090.0,2.21894133]
[1756311661669,0.9997771,112120.0,112110.0,0.0891781]
[1756311661865,0.1895637,112120.0,112110.0,1.12559493]
[1756311662173,0.0271266,112120.0,112110.0,1.37559493]
[1756311662669,0.0271266,112120.0,112110.0,2.22295493]
[1756311662871,0.1162967,112120.0,112110.0,1.4597581]
[1756311663063,0.2591467,112120.0,112110.0,1.4596781]
[1756311663262,0.1182967,112120.0,112110.0,1.4596781]
[1756311664264,0.0291266,112120.0,112110.0,1.97287493]
[1756311666060,0.0291266,112120.0,112110.0,2.22287493]
[1756311666466,0.0291266,112120.0,112110.0,2.22259493]
[1756311666662,0.0291266,112120.0,112110.0,1.37559493]